Workbook

Sheet PFP
A1: PROPOSTA FINANCEIRA DO PROJETO | J1: CODIGO:
J2: PFP
A3: NOME DA CONSULTORA:
A5: PROJETO: | F5: CONTRATANTE: | J5: BASE:
A6: Contrato para elaboração de ensaios, laudo técnico de avaliação e projeto estrutural de sistema elevado em concreto armado sobre a margem do rio amazonas na cidade de Santana-AP. | F6: CODEVASF (SEDE) | J6: 2023-10-01
A7: Base | B7: Cod2 | C7: Cod3 | D7: Categoria / Insumo | E7: Uni | F7: Qde | G7: CUD | H7: PU | I7: FatorK | J7: CT | K7: PT | L7: Encargos COMP E ADICIONAIS | M7: SOCIAIS | N7: TOTAIS
A8: SICRO | B8: MO3 | C8: P0 | D8: Engenheiro coordenador (P8061) | E8: mês | F8: ='CRO1_Ins-Pro'!D5 -> 0.95 | G8: 17018.13 | H8: =ROUND(I8*G8,2) -> 22251.2 | I8: ='PFP2.3_FatorKc'!E35 -> 1.3075 | J8: =ROUND(F8*G8,2) -> 16167.22 | K8: =ROUND(F8*H8,2) -> 21138.64 | L8: =N8-M8 -> 1026.89 | M8: 13451.98 | N8: 14478.87 | R8: =322+140+210 -> 672
A9: SICRO | B9: MO2 | C9: P1 | D9: Engenheiro sênior (P8067) | E9: mês | F9: ='CRO1_Ins-Pro'!D6 -> 3 | G9: 14672.91 | H9: 22762.09 | I9: ='PFP2.2_FatorKb'!$E$35 -> 1.5513 | J9: 44018.73 | K9: 68286.27 | L9: =N9-M9 -> 1030.19 | M9: 11533.74 | N9: 12563.93
A10: SICRO | B10: MO1 | C10: P2 | D10: Engenheiro pleno (P8066) | E10: mês | F10: ='CRO1_Ins-Pro'!D7 -> 3.25 | G10: 11469.24 | H10: =ROUND(I10*G10,2) -> 31057.55 | I10: ='PFP2.1_FatorKa'!$E$38 -> 2.7079 | J10: =ROUND(F10*G10,2) -> 37275.03 | K10: 100937.04 | L10: =N10-M10 -> 1030.19 | M10: 8980.37 | N10: 10010.56
A11: SICRO | B11: MO1 | C11: T1 | D11: Técnico de projetos/obra (P8147) | E11: mês | F11: ='CRO1_Ins-Pro'!D8 -> 0.25 | G11: 3091.07 | H11: 8370.31 | I11: ='PFP2.1_FatorKa'!$E$38 -> 2.7079 | J11: 772.77 | K11: 2092.58 | L11: 1070.18 | M11: 2450.48 | N11: 3520.66
A12: SINAPI | B12: MO1 | C12: D | D12: Desenhista (40807) | E12: mês | F12: ='CRO1_Ins-Pro'!D9 -> 2.1 | G12: 2744.46 | H12: =ROUND(I12*G12,2) -> 7431.72 | I12: ='PFP2.1_FatorKa'!$E$38 -> 2.7079 | J12: 5763.37 | K12: 15606.61 | L12: 1070.18 | M12: 2450.48 | N12: 3520.66
A13: SINAPI | B13: MO2 | C13: T1 | D13: Topógrafo (7592) | E13: h | F13: ='CRO1_Ins-Pro'!D10 -> 30 | G13: 21.06 | H13: =ROUND(I13*G13,2) -> 32.67 | I13: ='PFP2.2_FatorKb'!$E$35 -> 1.5513 | J13: 631.8 | K13: 980.1
A14: SINAPI | B14: MO2 | C14: T2 | D14: Auxiliar de Topógrafo (0244) | E14: h | F14: ='CRO1_Ins-Pro'!D11 -> 60 | G14: 9.48 | H14: 14.71 | I14: ='PFP2.2_FatorKb'!$E$35 -> 1.5513 | J14: 568.8 | K14: 882.6
A15: SICRO | B15: EC | C15: ECA | D15: Encargos Comp. e Adicionais | E15: mês | F15: ='CRO1_Ins-Pro'!D12 -> 9.55 | G15: =(L8*F8+L9*F9+L10*F10+L11*F11+L12*F12)/F15 -> 1039.702199 | H15: =ROUND(I15*G15,2) -> 1267.6 | I15: =PFP3_FatorKd!$E$17 -> 1.2192 | J15: =ROUND(F15*G15,2) -> 9929.16 | K15: =ROUND(F15*H15,2) -> 12105.58
A16: CODE | B16: EM | C16: M2 | D16: Relatório Final | E16: un | F16: ='CRO1_Ins-Pro'!D13 -> 3 | G16: 1478.8 | H16: 1802.95 | I16: =PFP3_FatorKd!$E$17 -> 1.2192 | J16: 4436.4 | K16: =ROUND(F16*H16,2) -> 5408.85
A17: CODE | B17: SU | C17: GEO | D17: Total Serviços Geotécnicos | E17: un | F17: ='CRO1_Ins-Pro'!D14 -> 1 | G17: - | H17: ='PFP1.2_Geo'!G23 -> 18220.3 | I17: - | J17: - | K17: 18220.3
A18: CODE | B18: SU | C18: GEO | D18: Total Ensaios no Concreto Armado | E18: un | F18: 1 | G18: - | H18: ='PFP1.0_ConcretoArmado'!G14 -> 23078.22 | I18: - | J18: - | K18: 23078.22
A19: CODE | B19: SU | C19: GEO | D19: Total Recursos Gerais | E19: un | F19: ='CRO1_Ins-Pro'!D16 -> 1 | G19: - | H19: ='PFP1.3_Ger'!G17 -> 45266.40243 | I19: - | J19: - | K19: 45266.4
A20: TOTAL DOS CUSTOS DIRETOS | H20: =SUM(J8:J19) -> 119563.28
A21: TOTAL DOS ENCARGOS E DISPESAS DIVERSAS | H21: =H22-H20 -> 107874.99
A22: TOTAL DA PROPOSTA A PREÇO GLOBAL | H22: =SUM(K8:K16) -> 227438.27
A23: TOTAL DA PROPOSTA A PREÇO UNITÁRIO | H23: =SUM(K17:K19) -> 86564.92
A24: TOTAL DA PROPOSTA | H24: =H22+H23 -> 314003.19
A25: OBSERVAÇÃO:
A26: *Encargos Complementares e adicionais já incluem auxílio transporte
A27: Alocar os Insumos MO, com respectivo FatorK, dentro da categoria de vínculo contratual (celetista, autonomo, societario)
A28: Uni - unidade de medição do insumo;
A29: Qde - Quantidade do Insumo (não pode ocorrer alteração pela Licitante)
A30: CUD - Custo Unitário Direto do Insumo (sem encargos, taxas e impostos, valor não pode ser maior que o Orçado pela Codevasf)
A31: CT - Custo Total (sem encargos, taxas e impostos) - CT = Qde x CUD
A32: FatorK - Taxa de Ressarcimento de Despesas e Encargos (detalhar composição nas Planilhas "PFP2.1", "PFP2.2", "PFP3")
A33: PU - Preço Unitário do Insumo (incluído encargos, taxas e impostos) - PU = CUD x FatorK
A34: PT - Preço Total do Insumo (incluído encargos, taxas e impostos) - PT = Qde x PU
A35: P - Profissionais nível superior nas áreas de Engenharia, Química, Arquitetura, Agronomia e Veterinária, conforme disposições da Lei 4.950-A/66
A36: S - Profissionais de nível superior nas demais áreas de atuação, incluindo Arqueólogo, Biólogo, Geógrafo e Sociólogo
A37: T - Profissionais de nível médio técnico nas diversas áreas de atuação
A38: A - Profissionais de nível médio de apoio técnico-administrativo
A40: Observações:
A41: 1- Sistemas oficiais de referência de preços utilizados
A42: Tabela Consultiva do DNIT-Out/2022.
A43: SINAPI/AL - 02/2023

Sheet PFP1.0_ConcretoArmado
A1: ENSAIOS NO CONCRETO ARMADO | G1: CODIGO:
G2: PFP-1.0
A3: NOME DA EMPRESA:
A5: PROJETO: | E5: CONTRATANTE: | G5: =PFP!J5 -> BASE:
A6: =PFP!A6 -> Contrato para elaboração de ensaios, laudo técnico de avaliação e projeto estrutural de sistema elevado em concreto armado sobre a margem do rio amazonas na cidade de Santana-AP. | E6: CODEVASF (SEDE) | G6: =PFP!J6 -> 2023-10-01
A7: Cod. | B7: Base | C7: Insumos | D7: Uni | E7: Qde | F7: Preço Unitário (PU) | G7: Preço Total (PT) | I7: Fonte:
C8: Esclerometria | D8: Un | E8: 18 | F8: 225 | G8: =E8*F8 -> 4050 | I8: LATEC - UNIVATES - 2023
C9: Ultrassom | D9: Un | E9: 12 | F9: 500 | G9: =E9*F9 -> 6000 | I9: LATEC - UNIVATES - 2023
C10: Carbonatação | D10: Un | E10: 9 | F10: 109.46 | G10: 985.14
C11: Extração Corpo de Prova e Ensaio de Resistencia a Compressão | D11: Un | E11: 12 | F11: =135+360 -> 495 | G11: 5940 | I11: LATEC - UNIVATES - 2023
C12: Pacometria | D12: Un | E12: 18 | F12: 226.04 | G12: 4068.72
C13: Potencial de Corrosão | D13: Un | E13: 9 | F13: 226.04 | G13: 2034.36
A14: ENSAIOS NO CONCRETO ARMADO | G14: =SUM(G8:G13) -> 23078.22
A15: OBSERVAÇÃO:
A16: Uni - unidade de medição do insumo;
A17: Qde - Quantidade do Insumo (não pode ocorrer alteração pela Licitante)
A18: PU - Preço Unitário (composições padrão da Codevasf, já incluso o FatorK)
A19: PT - Preço Total (incluído encargos, taxas e impostos) - PT = Qde x PU

Sheet PFP1.2_Geo
A1: SERVIÇOS GEOLÓGICOS/GEOTÉCNICOS | G1: CODIGO:
G2: PFP-1.2
A3: NOME DA EMPRESA:
A5: PROJETO: | E5: CONTRATANTE: | G5: =PFP!J5 -> BASE:
A6: =PFP!A6 -> Contrato para elaboração de ensaios, laudo técnico de avaliação e projeto estrutural de sistema elevado em concreto armado sobre a margem do rio amazonas na cidade de Santana-AP. | E6: CODEVASF (SEDE) | G6: =PFP!J6 -> 2023-10-01
A7: Cod. | B7: Base | C7: Insumos | D7: Uni | E7: Qde | F7: Preço Unitário (PU) | G7: Preço Total (PT)
A8: GT 2 | B8: CODE | C8: Sondagem a Percussão SPT
A9: GT2.1 | B9: CODE | C9: Sondagem Percussão: (Des)Mobilização por equipe | D9: un | E9: 2 | F9: 1249.33 | G9: =F9*E9 -> 2498.66 | I9: CPOS | J9: A.07.000.020476
A10: GT2.2 | B10: CODE | C10: Sondagem Percursão: com SPT | D10: m | E10: 50 | F10: 94.11 | G10: =F10*E10 -> 4705.5 | I10: CPOS | J10: A.07.000.020483
A11: GT2.2.2.1 | B11: CODE | C11: Sondagem Percursão: Desloc/Instalação 0-200 m | D11: un | E11: 4 | F11: 183.44 | G11: 733.76 | I11: SIURB | J11: 200204
A12: GT3 | B12: CODE | C12: Sondagem a trado | D12: m | E12: 20 | F12: 63.5 | G12: 1270 | I12: EMBASA | J12: 32.01.01
A13: GT4 | B13: CODE | C13: Ensaios:
A14: GT4.1 | B14: CODE | C14: Ensaios de solo
A15: GT4.1.2 | B15: CODE | C15: Ensaio: Densidade Natural | D15: un | E15: 10 | F15: 68.87 | G15: =F15*E15 -> 688.7 | I15: EMBASA | J15: E200340122
A16: GT4.1.3 | B16: CODE | C16: Ensaio: Limite de Liquidez | D16: un | E16: 10 | F16: 86.09 | G16: =F16*E16 -> 860.9 | I16: EMBASA | J16: E200340107
A17: GT4.1.4 | B17: CODE | C17: Ensaio: Limite de Plasticidade | D17: un | E17: 10 | F17: 77.48 | G17: 774.8 | I17: EMBASA | J17: E200340110
A18: GT4.1.5 | B18: CODE | C18: Ensaio: Granulometria por Peneiramento | D18: un | E18: 10 | F18: 110 | G18: 1100 | I18: EMBASA | J18: F099703060
A19: GT4.1.6 | B19: CODE | C19: Ensaio: Granulometria por Sedimentação | D19: un | E19: 10 | F19: 124.27 | G19: 1242.7 | I19: COMPESA | J19: 01.07.07U
A20: GT4.1.8 | B20: CODE | C20: Ensaio: Massa Especifica Real dos Grãos | D20: un | E20: 10 | F20: 65.78 | G20: 657.8 | I20: EMBASA | J20: 34.01.16
A21: GT4.1.11 | B21: CODE | C21: Ensaio: Triaxial UU não consolidado não drenado | D21: un | E21: 2 | F21: 1843.74 | G21: 3687.48 | I21: EMBASA | J21: 34.01.71
A23: TOTAL SERVIÇOS GEOTÉCNICOS | G23: =SUM(G9:G22) -> 18220.3
A24: LEGENDA:
A25: Uni - unidade de medição do insumo;
A26: Qde - Quantidade do Insumo (não pode ocorrer alteração pela Licitante)
A27: PU - Preço Unitário (composições padrão da Codevasf, já incluso o FatorK)
A28: PT - Preço Total (incluído encargos, taxas e impostos) - PT = Qde x PU

Sheet PFP1.3_Ger
A1: RECURSOS GERAIS
A3: NOME DA EMPRESA:
A5: PROJETO: | E5: CONTRATANTE: | G5: =PFP!J5 -> BASE:
A6: =PFP!A6 -> Contrato para elaboração de ensaios, laudo técnico de avaliação e projeto estrutural de sistema elevado em concreto armado sobre a margem do rio amazonas na cidade de Santana-AP. | E6: CODEVASF (SEDE) | G6: =PFP!J6 -> 2023-10-01
A7: Cod. | B7: Base | C7: Insumos | D7: Uni | E7: Qde | F7: Preço Unitário (PU) | G7: Preço Total (PT)
A8: V1 | B8: CODE | C8: Diárias | D8: dia | E8: 30 | F8: 305.1 | G8: =E8*F8 -> 9153
A9: V2 | B9: CODE | C9: Veículo leve - 53 kW (sem motorista) | D9: mês | E9: 3 | F9: ='CPU VEICULO_Leve'!D7 -> 3474.235154 | G9: 10422.70546
A10: V3 | B10: CODE | C10: Caminhonete 2.8 4x4 Diesel | D10: mês | E10: 1 | F10: ='CPU VEICULO_PickUp'!D7 -> 4852.462389 | G10: 4852.462389
A11: B8951 | B11: DNIT | C11: Imóvel Comercial | D11: m².mês | E11: 120 | F11: 46.53 | G11: 5583.6
A12: B8953 | B12: DNIT | C12: Mobiliário de Escritório | D12: Ocupante.mês | E12: 24 | F12: 505.99 | G12: 12143.76
A13: B8959 | B13: DNIT | C13: Custos Diversos de Escritório | D13: Ocupante.mês | E13: 24 | F13: 129 | G13: 3096
A14: 13244 | B14: SINAPI | C14: Cone de Sinalização em PVC Rígido com Faixa Refletiva, h = 70/76 cm * | D14: Uni | E14: 2 | F14: =62.5/24 -> 2.604166667 | G14: 5.208333333
A15: 38477 | B15: SINAPI | C15: Escada Extensível em Alumínio com 6,00 m Estendida * | D15: Uni | E15: 0,20 | F15: =1159.95/24 -> 48.33125 | G15: 9.66625
A16: S.01.000.080357 | B16: CPOS | C16: Estação total ** | D16: mês | E16: 0,1 | F16: =8.82*176 -> 1552.32 | G16: 155.232
A17: TOTAL RECURSOS GERAIS | G17: =SUM(G8:G15) -> 45266.40243
A18: LEGENDA:
A19: Uni - unidade de medição do insumo;
A20: Qde - Quantidade do Insumo (não pode ocorrer alteração pela Licitante)
A21: PU - Preço Unitário (composições padrão da Codevasf, já incluso o FatorK)
A22: PT - Preço Total (incluído encargos, taxas e impostos) - PT = Qde x PU
A23: * Preço mensal considerando depreciação total em 2 anos
A24: ** Preço de aluguel horário convertido em aluguel mensal pelas horas úteis de um mês

Sheet PFP2.1_FatorKa
A1: DETALHAMENTO DOS ENCARGOS SOCIAIS: Ka | F1: CODIGO:
F2: PFP-2.1
A3: NOME DA CONSULTORA:
A5: PROJETO: | C5: CONTRATANTE: | F5: =PFP!J5 -> BASE:
A6: =PFP!A6 -> Contrato para elaboração de ensaios, laudo técnico de avaliação e projeto estrutural de sistema elevado em concreto armado sobre a margem do rio amazonas na cidade de Santana-AP. | C6: CODEVASF (SEDE) | F6: SINAPI/AP: 12/22
A7: Cod | B7: DESCRIÇÃO | E7: % | F7: R$
A8: A | B8: ENCARGOS SOCIAIS BÁSICOS | E8: =ROUND(SUM(E9:E16),4) -> 0.368 | F8: =ROUND(E8*SUMIF(PFP!$B$8:$B$19,"MO1",PFP!$J$8:$J$19),2) -> 16122.51
A9: A1 | B9: INSS | E9: 0.2 | F9: =ROUND(E9*SUMIF(PFP!$B$8:$B$19,"MO1",PFP!$J$8:$J$19),2) -> 8762.23
A10: A2 | B10: SESI | E10: 0.015 | F10: =ROUND(E10*SUMIF(PFP!$B$8:$B$19,"MO1",PFP!$J$8:$J$19),2) -> 657.17
A11: A3 | B11: SENAI | E11: 0.01 | F11: =ROUND(E11*SUMIF(PFP!$B$8:$B$19,"MO1",PFP!$J$8:$J$19),2) -> 438.11
A12: A4 | B12: INCRA | E12: 0.002 | F12: =ROUND(E12*SUMIF(PFP!$B$8:$B$19,"MO1",PFP!$J$8:$J$19),2) -> 87.62
A13: A5 | B13: SEBRAE | E13: 0.006 | F13: =ROUND(E13*SUMIF(PFP!$B$8:$B$19,"MO1",PFP!$J$8:$J$19),2) -> 262.87
A14: A6 | B14: Salário Educação | E14: 0.025 | F14: =ROUND(E14*SUMIF(PFP!$B$8:$B$19,"MO1",PFP!$J$8:$J$19),2) -> 1095.28
A15: A7 | B15: Seguro Contra Acidentes de Trabalho | E15: 0.03 | F15: =ROUND(E15*SUMIF(PFP!$B$8:$B$19,"MO1",PFP!$J$8:$J$19),2) -> 1314.34
A16: A8 | B16: FGTS | E16: 0.08 | F16: =ROUND(E16*SUMIF(PFP!$B$8:$B$19,"MO1",PFP!$J$8:$J$19),2) -> 3504.89
A17: B | B17: ENCARGOS SOCIAIS QUE RECEBEM INCIDÊNCIA DE "A" | E17: =ROUND(SUM(E18:E27),4) -> 0.5081 | F17: =ROUND(E17*SUMIF(PFP!$B$8:$B$19,"MO1",PFP!$J$8:$J$19),2) -> 22260.46
A18: B1 | B18: Auxílio Enfermidade | E18: 0.1812 | F18: =ROUND(E18*SUMIF(PFP!$B$8:$B$19,"MO1",PFP!$J$8:$J$19),2) -> 7938.58
A19: B2 | B19: 13º Salário | E19: 0.0483 | F19: =ROUND(E19*SUMIF(PFP!$B$8:$B$19,"MO1",PFP!$J$8:$J$19),2) -> 2116.08
A20: B3 | B20: Auxílio Enfermidade | E20: 0.0089 | F20: =ROUND(E20*SUMIF(PFP!$B$8:$B$19,"MO1",PFP!$J$8:$J$19),2) -> 389.92
A21: B4 | B21: 13º Salário | E21: 0.112 | F21: =ROUND(E21*SUMIF(PFP!$B$8:$B$19,"MO1",PFP!$J$8:$J$19),2) -> 4906.85
A22: B5 | B22: Licença Paternidade | E22: 0.0007 | F22: =ROUND(E22*SUMIF(PFP!$B$8:$B$19,"MO1",PFP!$J$8:$J$19),2) -> 30.67
A23: B6 | B23: Faltas Justificadas | E23: 0.0075 | F23: =ROUND(E23*SUMIF(PFP!$B$8:$B$19,"MO1",PFP!$J$8:$J$19),2) -> 328.58
A24: B7 | B24: Dias de chuvas | E24: 0.0203 | F24: =ROUND(E24*SUMIF(PFP!$B$8:$B$19,"MO1",PFP!$J$8:$J$19),2) -> 889.37
A25: B8 | B25: Auxílio Acidente de Trabalho | E25: 0.0011 | F25: =ROUND(E25*SUMIF(PFP!$B$8:$B$19,"MO1",PFP!$J$8:$J$19),2) -> 48.19
A26: B9 | B26: Férias Gozadas | E26: 0.1277 | F26: =ROUND(E26*SUMIF(PFP!$B$8:$B$19,"MO1",PFP!$J$8:$J$19),2) -> 5594.69
A27: B10 | B27: Salário Maternidade | E27: 0.0004 | F27: =ROUND(E27*SUMIF(PFP!$B$8:$B$19,"MO1",PFP!$J$8:$J$19),2) -> 17.52
A28: C | B28: ENCARGOS SOCIAIS QUE NÃO RECEBEM INCIDÊNCIA DE "A" | E28: =ROUND(SUM(E29:E33),4) -> 0.0819 | F28: =ROUND(E28*SUMIF(PFP!$B$8:$B$19,"MO1",PFP!$J$8:$J$19),2) -> 3588.13
A29: C1 | B29: Aviso Prévio Indenizado | E29: 0.0406 | F29: =ROUND(E29*SUMIF(PFP!$B$8:$B$19,"MO1",PFP!$J$8:$J$19),2) -> 1778.73
A30: C2 | B30: Aviso Prévio Trabalhado | E30: 0.001 | F30: =ROUND(E30*SUMIF(PFP!$B$8:$B$19,"MO1",PFP!$J$8:$J$19),2) -> 43.81
A31: C3 | B31: Férias Indenizadas | E31: 0.0162 | F31: =ROUND(E31*SUMIF(PFP!$B$8:$B$19,"MO1",PFP!$J$8:$J$19),2) -> 709.74
A32: C4 | B32: Depósito Rescisão Sem Justa Causa | E32: 0.0207 | F32: =ROUND(E32*SUMIF(PFP!$B$8:$B$19,"MO1",PFP!$J$8:$J$19),2) -> 906.89
A33: C5 | B33: Indenização Adicional | E33: 0.0034 | F33: =ROUND(E33*SUMIF(PFP!$B$8:$B$19,"MO1",PFP!$J$8:$J$19),2) -> 148.96
A34: D | B34: REINCIDÊNCIAS | E34: =ROUND(SUM(E35:E36),4) -> 0.1906 | F34: =ROUND(E34*SUMIF(PFP!$B$8:$B$19,"MO1",PFP!$J$8:$J$19),2) -> 8350.41
A35: D1 | B35: Reincidência de "A" sobre "B" | E35: =ROUND(E8*E17,4) -> 0.187 | F35: =ROUND(E35*SUMIF(PFP!$B$8:$B$19,"MO1",PFP!$J$8:$J$19),2) -> 8192.69
A36: D2 | B36: Reincidência de "A" sobre Aviso Prévio Trabalhado e reincidência do FGTS sobre Aviso Prévio Indenizado | E36: =ROUND((E30*E8)+(E29*E16),4) -> 0.0036 | F36: =ROUND(E36*SUMIF(PFP!$B$8:$B$19,"MO1",PFP!$J$8:$J$19),2) -> 157.72
A37: K1a | B37: ENCARGOS SOCIAIS | E37: =ROUND(E8+E17+E28+E34,4) -> 1.1486 | F37: =ROUND(E37*SUMIF(PFP!$B$8:$B$19,"MO1",PFP!$J$8:$J$19),2) -> 50321.51
A38: Ka | B38: TAXA DE RESSARCIMENTO DE DESPESAS E ENCARGOS SOBRE MO1 | E38: =ROUND((1+E37+PFP3_FatorKd!E13)*(1+PFP3_FatorKd!E12)*(1+PFP3_FatorKd!E8),4) -> 2.7079
A39: OBSERVAÇÃO: CELETISTAS E EQUIVALENTES
A40: 1 - DISCRIMINAR OS ENCARGOS SOCIAIS COM SEUS RESPECTIVOS PERCENTUAS TOTALIZANDO OS MESMOS.
A41: 2 - APLICAR O % TOTAL P/ CALCULAR OS E. SOCIAIS INCIDENTES NA MÃO-DE-OBRA CELETISTAS
A42: Ka - Taxa de Ressarcimento de Despesas e Encargos sobre a Mão de Obra CELETISTA (incide apenas no Insumo Codigo MO1)
A43: Ka = (1 + K1 + K2) x (1 + K3) x (1 + K4)

Sheet PFP2.2_FatorKb
A1: DETALHAMENTO DOS ENCARGOS SOCIAIS: Kb | F1: CODIGO:
F2: PFP-2.2
A3: NOME DA CONSULTORA:
A5: PROJETO: | C5: CONTRATANTE: | F5: ='PFP2.1_FatorKa'!F5 -> BASE:
A6: =PFP!A6 -> Contrato para elaboração de ensaios, laudo técnico de avaliação e projeto estrutural de sistema elevado em concreto armado sobre a margem do rio amazonas na cidade de Santana-AP. | C6: CODEVASF (SEDE) | F6: ='PFP2.1_FatorKa'!F6 -> SINAPI/AP: 12/22
A7: Cod | B7: DESCRIÇÃO | E7: % | F7: R$
A8: A | B8: ENCARGOS SOCIAIS BÁSICOS | E8: =ROUND(SUM(E9:E16),4) -> 0.2 | F8: =ROUND(E8*SUMIF(PFP!$B$8:$B$19,"MO2",PFP!$J$8:$J$19),2) -> 9043.87
A9: A1 | B9: INSS | E9: 0.2 | F9: =ROUND(E9*SUMIF(PFP!$B$8:$B$19,"MO2",PFP!$J$8:$J$19),2) -> 9043.87
A10: A2 | B10: SESI | E10: 0 | F10: =ROUND(E10*SUMIF(PFP!$B$8:$B$19,"MO2",PFP!$J$8:$J$19),2) -> 0
A11: A3 | B11: SENAI | E11: 0 | F11: =ROUND(E11*SUMIF(PFP!$B$8:$B$19,"MO2",PFP!$J$8:$J$19),2) -> 0
A12: A4 | B12: INCRA | E12: 0 | F12: =ROUND(E12*SUMIF(PFP!$B$8:$B$19,"MO2",PFP!$J$8:$J$19),2) -> 0
A13: A5 | B13: SEBRAE | E13: 0 | F13: =ROUND(E13*SUMIF(PFP!$B$8:$B$19,"MO2",PFP!$J$8:$J$19),2) -> 0
A14: A6 | B14: Salário Educação | E14: 0 | F14: =ROUND(E14*SUMIF(PFP!$B$8:$B$19,"MO2",PFP!$J$8:$J$19),2) -> 0
A15: A7 | B15: Seguro Contra Acidentes de Trabalho | E15: 0 | F15: =ROUND(E15*SUMIF(PFP!$B$8:$B$19,"MO2",PFP!$J$8:$J$19),2) -> 0
A16: A8 | B16: FGTS | E16: 0 | F16: =ROUND(E16*SUMIF(PFP!$B$8:$B$19,"MO2",PFP!$J$8:$J$19),2) -> 0
A17: B | B17: ENCARGOS SOCIAIS QUE RECEBEM INCIDÊNCIA DE "A" | E17: =ROUND(SUM(E18:E24),4) -> 0 | F17: =ROUND(E17*SUMIF(PFP!$B$8:$B$19,"MO2",PFP!$J$8:$J$19),2) -> 0
A18: B3 | B18: Auxílio Enfermidade | E18: 0 | F18: =ROUND(E18*SUMIF(PFP!$B$8:$B$19,"MO2",PFP!$J$8:$J$19),2) -> 0
A19: B4 | B19: 13º Salário | E19: 0 | F19: =ROUND(E19*SUMIF(PFP!$B$8:$B$19,"MO2",PFP!$J$8:$J$19),2) -> 0
A20: B5 | B20: Licença Paternidade | E20: 0 | F20: =ROUND(E20*SUMIF(PFP!$B$8:$B$19,"MO2",PFP!$J$8:$J$19),2) -> 0
A21: B6 | B21: Faltas Justificadas | E21: 0 | F21: =ROUND(E21*SUMIF(PFP!$B$8:$B$19,"MO2",PFP!$J$8:$J$19),2) -> 0
A22: B8 | B22: Auxílio Acidente de Trabalho | E22: 0 | F22: =ROUND(E22*SUMIF(PFP!$B$8:$B$19,"MO2",PFP!$J$8:$J$19),2) -> 0
A23: B9 | B23: Férias Gozadas | E23: 0 | F23: =ROUND(E23*SUMIF(PFP!$B$8:$B$19,"MO2",PFP!$J$8:$J$19),2) -> 0
A24: B10 | B24: Salário Maternidade | E24: 0 | F24: =ROUND(E24*SUMIF(PFP!$B$8:$B$19,"MO2",PFP!$J$8:$J$19),2) -> 0
A25: C | B25: ENCARGOS SOCIAIS QUE NÃO RECEBEM INCIDÊNCIA DE "A" | E25: =ROUND(SUM(E26:E30),4) -> 0 | F25: =ROUND(E25*SUMIF(PFP!$B$8:$B$19,"MO2",PFP!$J$8:$J$19),2) -> 0
A26: C1 | B26: Aviso Prévio Indenizado | E26: 0 | F26: =ROUND(E26*SUMIF(PFP!$B$8:$B$19,"MO2",PFP!$J$8:$J$19),2) -> 0
A27: C2 | B27: Aviso Prévio Trabalhado | E27: 0 | F27: =ROUND(E27*SUMIF(PFP!$B$8:$B$19,"MO2",PFP!$J$8:$J$19),2) -> 0
A28: C3 | B28: Férias Indenizadas | E28: 0 | F28: =ROUND(E28*SUMIF(PFP!$B$8:$B$19,"MO2",PFP!$J$8:$J$19),2) -> 0
A29: C4 | B29: Depósito Rescisão Sem Justa Causa | E29: 0 | F29: =ROUND(E29*SUMIF(PFP!$B$8:$B$19,"MO2",PFP!$J$8:$J$19),2) -> 0
A30: C5 | B30: Indenização Adicional | E30: 0 | F30: =ROUND(E30*SUMIF(PFP!$B$8:$B$19,"MO2",PFP!$J$8:$J$19),2) -> 0
A31: D | B31: REINCIDÊNCIAS | E31: =ROUND(SUM(E32:E33),4) -> 0 | F31: =ROUND(E31*SUMIF(PFP!$B$8:$B$19,"MO2",PFP!$J$8:$J$19),2) -> 0
A32: D1 | B32: Reincidência de "A" sobre "B" | E32: =ROUND(E8*E17,4) -> 0 | F32: =ROUND(E32*SUMIF(PFP!$B$8:$B$19,"MO2",PFP!$J$8:$J$19),2) -> 0
A33: D2 | B33: Reincidência de "A" sobre Aviso Prévio Trabalhado e reincidência do FGTS sobre Aviso Prévio Indenizado | E33: =ROUND((E27*E8)+(E26*E16),4) -> 0 | F33: =ROUND(E33*SUMIF(PFP!$B$8:$B$19,"MO2",PFP!$J$8:$J$19),2) -> 0
A34: K1b | B34: ENCARGOS SOCIAIS | E34: =ROUND(E8+E17+E25+E31,4) -> 0.2 | F34: =ROUND(E34*SUMIF(PFP!$B$8:$B$19,"MO2",PFP!$J$8:$J$19),2) -> 9043.87
A35: Kb | B35: TAXA DE RESSARCIMENTO DE DESPESAS E ENCARGOS SOBRE MO2 | E35: =ROUND((1+E34+PFP3_FatorKd!E13)*(1+PFP3_FatorKd!E12)*(1+PFP3_FatorKd!E8),4) -> 1.5513
A36: OBSERVAÇÃO: AUTÔNOMOS E EQUIVALENTES
A37: 1 - DISCRIMINAR OS ENCARGOS SOCIAIS COM SEUS RESPECTIVOS PERCENTUAS TOTALIZANDO OS MESMOS.
A38: 2 - APLICAR O % TOTAL P/ CALCULAR OS E. SOCIAIS INCIDENTES NA MÃO-DE-OBRA AUTONÔMOS
A39: Kb - Taxa de Ressarcimento de Despesas e Encargos sobre a Mão de Obra AUTONÔMA (incide apenas no Insumo Codigo MO2)
A40: Kb = (1 + K1 + K2) x (1 + K3) x (1 + K4)

Sheet PFP2.3_FatorKc
A1: DETALHAMENTO DOS ENCARGOS SOCIAIS: Kc | F1: CODIGO:
F2: PFP-2.3
A3: NOME DA CONSULTORA:
A5: PROJETO: | C5: CONTRATANTE: | F5: ='PFP2.2_FatorKb'!F5 -> BASE:
A6: =PFP!A6 -> Contrato para elaboração de ensaios, laudo técnico de avaliação e projeto estrutural de sistema elevado em concreto armado sobre a margem do rio amazonas na cidade de Santana-AP. | C6: CODEVASF (SEDE) | F6: ='PFP2.2_FatorKb'!F6 -> SINAPI/AP: 12/22
A7: Cod | B7: DESCRIÇÃO | E7: % | F7: R$
A8: A | B8: ENCARGOS SOCIAIS BÁSICOS | E8: =SUM(E9:E16) -> 0 | F8: =ROUND(E8*SUMIF(PFP!$B$8:$B$19,"MO3",PFP!$J$8:$J$19),2) -> 0
A9: A1 | B9: INSS | E9: 0 | F9: =ROUND(E9*SUMIF(PFP!$B$8:$B$19,"MO3",PFP!$J$8:$J$19),2) -> 0
A10: A2 | B10: SESI | E10: 0 | F10: =ROUND(E10*SUMIF(PFP!$B$8:$B$19,"MO3",PFP!$J$8:$J$19),2) -> 0
A11: A3 | B11: SENAI | E11: 0 | F11: =ROUND(E11*SUMIF(PFP!$B$8:$B$19,"MO3",PFP!$J$8:$J$19),2) -> 0
A12: A4 | B12: INCRA | E12: 0 | F12: =ROUND(E12*SUMIF(PFP!$B$8:$B$19,"MO3",PFP!$J$8:$J$19),2) -> 0
A13: A5 | B13: SEBRAE | E13: 0 | F13: =ROUND(E13*SUMIF(PFP!$B$8:$B$19,"MO3",PFP!$J$8:$J$19),2) -> 0
A14: A6 | B14: Salário Educação | E14: 0 | F14: =ROUND(E14*SUMIF(PFP!$B$8:$B$19,"MO3",PFP!$J$8:$J$19),2) -> 0
A15: A7 | B15: Seguro Contra Acidentes de Trabalho | E15: 0 | F15: =ROUND(E15*SUMIF(PFP!$B$8:$B$19,"MO3",PFP!$J$8:$J$19),2) -> 0
A16: A8 | B16: FGTS | E16: 0 | F16: =ROUND(E16*SUMIF(PFP!$B$8:$B$19,"MO3",PFP!$J$8:$J$19),2) -> 0
A17: B | B17: ENCARGOS SOCIAIS QUE RECEBEM INCIDÊNCIA DE "A" | E17: =ROUND(SUM(E18:E24),4) -> 0 | F17: =ROUND(E17*SUMIF(PFP!$B$8:$B$19,"MO3",PFP!$J$8:$J$19),2) -> 0
A18: B3 | B18: Auxílio Enfermidade | E18: 0 | F18: =ROUND(E18*SUMIF(PFP!$B$8:$B$19,"MO3",PFP!$J$8:$J$19),2) -> 0
A19: B4 | B19: 13º Salário | E19: 0 | F19: =ROUND(E19*SUMIF(PFP!$B$8:$B$19,"MO3",PFP!$J$8:$J$19),2) -> 0
A20: B5 | B20: Licença Paternidade | E20: 0 | F20: =ROUND(E20*SUMIF(PFP!$B$8:$B$19,"MO3",PFP!$J$8:$J$19),2) -> 0
A21: B6 | B21: Faltas Justificadas | E21: 0 | F21: =ROUND(E21*SUMIF(PFP!$B$8:$B$19,"MO3",PFP!$J$8:$J$19),2) -> 0
A22: B8 | B22: Auxílio Acidente de Trabalho | E22: 0 | F22: =ROUND(E22*SUMIF(PFP!$B$8:$B$19,"MO3",PFP!$J$8:$J$19),2) -> 0
A23: B9 | B23: Férias Gozadas | E23: 0 | F23: =ROUND(E23*SUMIF(PFP!$B$8:$B$19,"MO3",PFP!$J$8:$J$19),2) -> 0
A24: B10 | B24: Salário Maternidade | E24: 0 | F24: =ROUND(E24*SUMIF(PFP!$B$8:$B$19,"MO3",PFP!$J$8:$J$19),2) -> 0
A25: C | B25: ENCARGOS SOCIAIS QUE NÃO RECEBEM INCIDÊNCIA DE "A" | E25: =ROUND(SUM(E26:E30),4) -> 0 | F25: =ROUND(E25*SUMIF(PFP!$B$8:$B$19,"MO3",PFP!$J$8:$J$19),2) -> 0
A26: C1 | B26: Aviso Prévio Indenizado | E26: 0 | F26: =ROUND(E26*SUMIF(PFP!$B$8:$B$19,"MO3",PFP!$J$8:$J$19),2) -> 0
A27: C2 | B27: Aviso Prévio Trabalhado | E27: 0 | F27: =ROUND(E27*SUMIF(PFP!$B$8:$B$19,"MO3",PFP!$J$8:$J$19),2) -> 0
A28: C3 | B28: Férias Indenizadas | E28: 0 | F28: =ROUND(E28*SUMIF(PFP!$B$8:$B$19,"MO3",PFP!$J$8:$J$19),2) -> 0
A29: C4 | B29: Depósito Rescisão Sem Justa Causa | E29: 0 | F29: =ROUND(E29*SUMIF(PFP!$B$8:$B$19,"MO3",PFP!$J$8:$J$19),2) -> 0
A30: C5 | B30: Indenização Adicional | E30: 0 | F30: =ROUND(E30*SUMIF(PFP!$B$8:$B$19,"MO3",PFP!$J$8:$J$19),2) -> 0
A31: D | B31: REINCIDÊNCIAS | E31: =ROUND(SUM(E32:E33),4) -> 0 | F31: =ROUND(E31*SUMIF(PFP!$B$8:$B$19,"MO3",PFP!$J$8:$J$19),2) -> 0
A32: D1 | B32: Reincidência de "A" sobre "B" | E32: =ROUND(E8*E17,4) -> 0 | F32: =ROUND(E32*SUMIF(PFP!$B$8:$B$19,"MO3",PFP!$J$8:$J$19),2) -> 0
A33: D2 | B33: Reincidência de "A" sobre Aviso Prévio Trabalhado e reincidência do FGTS sobre Aviso Prévio Indenizado | E33: =ROUND(E8*E27,4)+ROUND(E26*E11,4) -> 0 | F33: =ROUND(E33*SUMIF(PFP!$B$8:$B$19,"MO3",PFP!$J$8:$J$19),2) -> 0
A34: K1c | B34: ENCARGOS SOCIAIS | E34: =ROUND(E8+E17+E25+E31,4) -> 0 | F34: =ROUND(E34*SUMIF(PFP!$B$8:$B$19,"MO3",PFP!$J$8:$J$19),2) -> 0
A35: Kc | B35: TAXA DE RESSARCIMENTO DE DESPESAS E ENCARGOS SOBRE MO3 | E35: =ROUND((1+E34+PFP3_FatorKd!E13)*(1+PFP3_FatorKd!E12)*(1+PFP3_FatorKd!E8),4) -> 1.3075
A36: OBSERVAÇÃO: SOCIETÁRIOS E EQUIVALENTES
A37: 1 - DISCRIMINAR OS ENCARGOS SOCIAIS COM SEUS RESPECTIVOS PERCENTUAS TOTALIZANDO OS MESMOS.
A38: 2 - APLICAR O % TOTAL P/ CALCULAR OS E. SOCIAIS INCIDENTES NA MÃO-DE-OBRA DE SOCIETÁRIOS
A39: Kc - Taxa de Ressarcimento de Despesas e Encargos sobre a Mão de Obra SOCIETÁRIA (incide apenas no Insumo Codigo MO3)
A40: Kc = (1 + K1 + K2) x (1 + K3) x (1 + K4)

Sheet PFP3_FatorKd
A1: DESPESAS FISCAIS E CUSTOS DIVERSOS: Kc | F1: CODIGO:
F2: PFP-3
A3: NOME DA CONSULTORA:
A5: PROJETO: | C5: CONTRATANTE: | F5: ='PFP2.3_FatorKc'!F5 -> BASE:
A6: =PFP!A6 -> Contrato para elaboração de ensaios, laudo técnico de avaliação e projeto estrutural de sistema elevado em concreto armado sobre a margem do rio amazonas na cidade de Santana-AP. | C6: CODEVASF (SEDE) | F6: ='PFP2.3_FatorKc'!F6 -> SINAPI/AP: 12/22
A7: Cod | B7: DESCRIÇÃO1 | D7: % preço2 | E7: % custo4 | F7: R$
A8: K4 | B8: TRIBUTOS | D8: =ROUND(D9+D10+D11,4) -> 0.104 | E8: =ROUND(E9+E10+E11,4) -> 0.1161 | F8: =E8*SUM(SUMIF(PFP!$B$8:$B$19,"MO1",PFP!$J$8:$J$19)*(1+'PFP2.1_FatorKa'!$E$37)+SUMIF(PFP!$B$8:$B$19,"MO2",PFP!$J$8:$J$19)*(1+'PFP2.2_FatorKb'!$E$34)+SUMIF(PFP!$B$8:$B$19,"<>MO*",PFP!$J$8:$J$19)+$F$13+$F$12) -> 21608.60742
A9: K4.1 | B9: ISS | D9: 0.03 | E9: =ROUND((1/(1-$D$8))*D9,4) -> 0.0335 | F9: =E9*SUM(SUMIF(PFP!$B$8:$B$19,"MO1",PFP!$J$8:$J$19)*(1+'PFP2.1_FatorKa'!$E$37)+SUMIF(PFP!$B$8:$B$19,"MO2",PFP!$J$8:$J$19)*(1+'PFP2.2_FatorKb'!$E$34)+SUMIF(PFP!$B$8:$B$19,"<>MO*",PFP!$J$8:$J$19)+$F$13+$F$12) -> 6235.041761
A10: K4.2 | B10: PIS3 - aliquota efetiva aplicavel percentual-desconto | D10: =ROUND(1.65%*0.8,4) -> 0.0132 | E10: =ROUND((1/(1-$D$8))*D10,4) -> 0.0147 | F10: =E10*SUM(SUMIF(PFP!$B$8:$B$19,"MO1",PFP!$J$8:$J$19)*(1+'PFP2.1_FatorKa'!$E$37)+SUMIF(PFP!$B$8:$B$19,"MO2",PFP!$J$8:$J$19)*(1+'PFP2.2_FatorKb'!$E$34)+SUMIF(PFP!$B$8:$B$19,"<>MO*",PFP!$J$8:$J$19)+$F$13+$F$12) -> 2735.973549
A11: K4.3 | B11: COFINS3 - aliquota efetiva aplicavel percentual-desconto | D11: =ROUND(7.6%*0.8,4) -> 0.0608 | E11: =ROUND((1/(1-$D$8))*D11,4) -> 0.0679 | F11: =E11*SUM(SUMIF(PFP!$B$8:$B$19,"MO1",PFP!$J$8:$J$19)*(1+'PFP2.1_FatorKa'!$E$37)+SUMIF(PFP!$B$8:$B$19,"MO2",PFP!$J$8:$J$19)*(1+'PFP2.2_FatorKb'!$E$34)+SUMIF(PFP!$B$8:$B$19,"<>MO*",PFP!$J$8:$J$19)+$F$13+$F$12) -> 12637.59211
A12: K3 | B12: REMUNERAÇÃO DA EMPRESA (LUCRO) | E12: 0.0924 | F12: =E12*SUM(SUMIF(PFP!$B$8:$B$19,"MO1",PFP!$J$8:$J$19)*(1+'PFP2.1_FatorKa'!$E$37)+SUMIF(PFP!$B$8:$B$19,"MO2",PFP!$J$8:$J$19)*(1+'PFP2.2_FatorKb'!$E$34)+SUMIF(PFP!$B$8:$B$19,"<>MO*",PFP!$J$8:$J$19)+$F$13) -> 15742.90372
A13: K2 | B13: CUSTOS DA ADMINISTRAÇÃO CENTRAL | E13: =ROUND(SUM(E14:E16),4) -> 0.0724 | F13: =ROUND(E13*SUMIF(PFP!$B$8:$B$19,"MO*",PFP!$J$8:$J$19),2) -> 7616.31
A14: K2.1 | B14: Custos da administração central da empresa (diretoria, pessoal técnico de apoio e pessoal administrativo não diretamente vinculado à prestação dos serviços) | E14: 0.04 | F14: =ROUND(E14*SUMIF(PFP!$B$8:$B$19,"MO*",PFP!$J$8:$J$19),2) -> 4207.91
A15: K2.2 | B15: Outras despesas que afetam o custo de produção como treinamento, biblioteca, programa de qualidade, programa de benefícios, auditoria interna e externa | E15: 0.02 | F15: =ROUND(E15*SUMIF(PFP!$B$8:$B$19,"MO*",PFP!$J$8:$J$19),2) -> 2103.95
A16: K2.3 | B16: Despesas fixas e variaveis com patrimônio, aluguéis, comunicação, manutenção e transporte não diretamente relacionados com o custo direto dos serviços | E16: 0.0124 | F16: =ROUND(E16*SUMIF(PFP!$B$8:$B$19,"MO*",PFP!$J$8:$J$19),2) -> 1304.45
A17: Kd | B17: TAXA RESSARCIMENTO DE DESPESAS SOBRE CUSTOS DIVERSOS | E17: =ROUND((1+E12)*(1+E8),4) -> 1.2192
A18: NOME DO INFORMANTE: | E18: QUALIFICAÇÃO:
A20: ASSINATURA: | E20: DATA:
A22: Observação:
A23: 1 - RELACIONAR OS CUSTOS DE ADMINISTRAÇÃO COM RESPECTIVOS PERCENTUAIS INCIDENTES NA MÃO -DE-OBRA
A24: 1 - DISCRIMINAR OS TRIBUTOS QUE INCIDEM SOBRE OS CUSTOS DA PRESTAÇÃO DOS SERVIÇOS
A25: 2 - K4 = INDICAR % DE CADA TRIBUTO E A SOMA DOS MESMOS (ex: ISS 5% + PIS 1,65% + COFINS 7,60% = 14,25%)
A26: 3 - PIS e COFINS, Regime de Incidencia Acumulativa (0,65% e 3,00% - sem percentual de desconto) ou em Regime de Incidencia Não Acumulativa (1,65% e 7,60% - aplicável percentual de desconto) de acordo com a forma de apuração do lucro no IRPJ. APRESENTAR COMPROVANTES de aproveitamento de créditos tributários dos últimos 12 meses em caso de aplicação de "percentual de desconto".
A27: 4 - AS DESPESAS FISCAIS (K4) INCIDEM SOBRE O TOTAL DA FATURA E NÃO SOBRE OS CUSTOS INCORRIDOS,
A28: DEVENDO SER CALCULADO O K4' APLICANDO-SE A SEGUINTE FÓRMULA:
A29: K4' = { [ 1 / ( 1 - K4) ] - 1 } x 100
A30: =CONCATENATE(" K4' = { [ 1 / ( 1 - ",D8," ) ] - 1 } x 100") -> K4' = { [ 1 / ( 1 - 0,104 ) ] - 1 } x 100
A31: Kc - Taxa de Ressarcimento de Despesas sobre Custos Diversos (incide sobre os Insumos Codigo DP e EM)
A32: Kc = (1 + K3) x (1 + K4)
A33: K2 - Incide sobre o Custo Total (CT) da Mão de Obra (MO* = MO1 + MO2)
A34: K3 - Incide sobre o Custo Total (CT) Mão de Obra com encargos (MO1 x Ka ou MO2 x Kb), demais Custos (DP e EM), e Custos da Administração Central (K2)
A35: K4 - Incide sobre o Custo Total (CT) Mão de Obra com encargos (MO1 x Ka ou MO2 x Kb), demais Custos (DP e EM), e Custos da Administração Central (K2) e Lucro (K3)

Sheet CRO1_Ins-Pro
A1: INSUMOS POR ETAPA/PRODUTO | J1: CÓDIGO:
J2: CRO-1
A3: Cod. | B3: Categoria / Insumo | C3: Uni | D3: Qde | E3: CUD | F3: PU | G3: FatorK | H3: E1. RE | I3: E2. LT | J3: E3. PE
G4: Meses | H4: ='CRO2_Ins-Mes'!E4 -> 1 | I4: ='CRO2_Ins-Mes'!E5 -> 1 | J4: ='CRO2_Ins-Mes'!E6 -> 2
A5: =PFP!C8 -> P0 | B5: =PFP!D8 -> Engenheiro coordenador (P8061) | C5: mês | D5: =SUM(H5:J5) -> 0.95 | E5: =PFP!G8 -> 17018.13 | F5: =PFP!H8 -> 22251.2 | G5: =PFP!I8 -> 1.3075 | H5: ='CRO2_Ins-Mes'!E9 -> 0.2 | I5: ='CRO2_Ins-Mes'!E20 -> 0.25 | J5: ='CRO2_Ins-Mes'!E26 -> 0.5
A6: =PFP!C9 -> P1 | B6: =PFP!D9 -> Engenheiro sênior (P8067) | C6: mês | D6: =SUM(H6:J6) -> 3 | E6: =PFP!G9 -> 14672.91 | F6: =PFP!H9 -> 22762.09 | G6: =PFP!I9 -> 1.5513 | H6: ='CRO2_Ins-Mes'!E10 -> 0.5 | I6: ='CRO2_Ins-Mes'!E21 -> 0.5 | J6: ='CRO2_Ins-Mes'!E27 -> 2
A7: =PFP!C10 -> P2 | B7: =PFP!D10 -> Engenheiro pleno (P8066) | C7: mês | D7: =SUM(H7:J7) -> 3.25 | E7: =PFP!G10 -> 11469.24 | F7: =PFP!H10 -> 31057.55 | G7: =PFP!I10 -> 2.7079 | H7: ='CRO2_Ins-Mes'!E11 -> 0.5 | I7: ='CRO2_Ins-Mes'!E22 -> 0.75 | J7: ='CRO2_Ins-Mes'!E28 -> 2
A8: =PFP!C11 -> T1 | B8: =PFP!D11 -> Técnico de projetos/obra (P8147) | C8: mês | D8: =SUM(H8:J8) -> 0.25 | E8: =PFP!G11 -> 3091.07 | F8: =PFP!H11 -> 8370.31 | G8: =PFP!I11 -> 2.7079 | H8: ='CRO2_Ins-Mes'!E12 -> 0.25 | I8: 0 | J8: 0
A9: =PFP!C12 -> D | B9: =PFP!D12 -> Desenhista (40807) | C9: mês | D9: =SUM(H9:J9) -> 2.1 | E9: =PFP!G12 -> 2744.46 | F9: =PFP!H12 -> 7431.72 | G9: =PFP!I12 -> 2.7079 | H9: ='CRO2_Ins-Mes'!E13 -> 0.1 | I9: ='CRO2_Ins-Mes'!E23 -> 0.5 | J9: ='CRO2_Ins-Mes'!E29 -> 1.5
A10: =PFP!C13 -> T1 | B10: =PFP!D13 -> Topógrafo (7592) | C10: h | D10: =SUM(H10:J10) -> 30 | E10: =PFP!G13 -> 21.06 | F10: =PFP!H13 -> 32.67 | G10: =PFP!I13 -> 1.5513 | H10: ='CRO2_Ins-Mes'!E14 -> 30 | I10: 0 | J10: 0
A11: =PFP!C14 -> T2 | B11: =PFP!D14 -> Auxiliar de Topógrafo (0244) | C11: h | D11: 60 | E11: =PFP!G14 -> 9.48 | F11: =PFP!H14 -> 14.71 | G11: =PFP!I14 -> 1.5513 | H11: ='CRO2_Ins-Mes'!E15 -> 60 | I11: 0 | J11: 0
A12: =PFP!C15 -> ECA | B12: =PFP!D15 -> Encargos Comp. e Adicionais | C12: mês | D12: =SUM(H12:J12) -> 9.55 | E12: =PFP!G15 -> 1039.702199 | F12: =PFP!H15 -> 1267.6 | G12: =PFP!I15 -> 1.2192 | H12: =SUM(H5:H9) -> 1.55 | I12: =SUM(I5:I9) -> 2 | J12: =SUM(J5:J9) -> 6
A13: =PFP!C16 -> M2 | B13: =PFP!D16 -> Relatório Final | C13: un | D13: =SUM(H13:J13) -> 3 | E13: =PFP!G16 -> 1478.8 | F13: =PFP!H16 -> 1802.95 | G13: =PFP!I16 -> 1.2192 | H13: ='CRO2_Ins-Mes'!E16 -> 1 | I13: ='CRO2_Ins-Mes'!E24 -> 1 | J13: ='CRO2_Ins-Mes'!E30 -> 1
A14: =PFP!C17 -> GEO | B14: =PFP!D17 -> Total Serviços Geotécnicos | C14: un | D14: =SUM(H14:J14) -> 1 | E14: =PFP!G17 -> - | F14: =PFP!H17 -> 18220.3 | G14: =PFP!I17 -> - | H14: 1 | I14: 0 | J14: 0
B15: =PFP!D18 -> Total Ensaios no Concreto Armado | C15: mês | D15: =SUM(H15:J15) -> 1 | E15: =PFP!G18 -> - | F15: =PFP!H18 -> 23078.22 | G15: =PFP!I18 -> - | H15: 1 | I15: 0 | J15: 0
A16: =PFP!C19 -> GEO | B16: =PFP!D19 -> Total Recursos Gerais | C16: un | D16: 1 | E16: =PFP!G19 -> - | F16: =PFP!H19 -> 45266.40243 | G16: =PFP!I19 -> - | H16: 0.3333333333 | I16: 0.3333333333 | J16: 0.3333333333
A17: TOTAL | B17: VALOR TOTAL POR PRODUTO | C17: R$ | D17: =SUM(H17:J17) -> 314003.1894 | H17: =(H5*$F$5+H6*$F$6+H7*$F$7+H8*$F$8+H9*$F$9+H10*$F$10+H11*$F$11+H12*$F$12+H13*$F$13+H14*$F$14+H15*$F$15+H16*$F$16) -> 96213.56031 | I17: =(I5*$F$5+I6*$F$6+I7*$F$7+I8*$F$8+I9*$F$9+I10*$F$10+I11*$F$11+I12*$F$12+I13*$F$13+I14*$F$14+I15*$F$15+I16*$F$16) -> 63379.81831 | J17: =(J5*$F$5+J6*$F$6+J7*$F$7+J8*$F$8+J9*$F$9+J10*$F$10+J11*$F$11+J12*$F$12+J13*$F$13+J14*$F$14+J15*$F$15+J16*$F$16) -> 154409.8108
C18: % | D18: =SUM(H18:J18) -> 1 | H18: =ROUND(H17/$D$17,5) -> 0.30641 | I18: =ROUND(I17/$D$17,5) -> 0.20184 | J18: =ROUND(J17/$D$17,5) -> 0.49175
A81: OBSERVAÇÃO:
A82: P - Profissionais nível superior nas áreas de Engenharia, Química, Arquitetura, Agronomia e Veterinária, conforme disposições da Lei 4.950-A/66
A83: T - Profissionais de nível médio técnico nas diversas áreas de atuação
A84: A - Profissionais de nível médio de apoio técnico-administrativo

Sheet CRO2_Ins-Mes
A1: CRONOGRAMA SIMPLIFICADO
A3: Cod1 | B3: Cod2 | C3: Produtos | D3: Uni | E3: Qde | F3: 1 | G3: 2 | H3: 3 | I3: 4
A4: 1 | B4: 1 | C4: Relatório de Apresentação dos Resultados dos Ensaios (RE) | D4: mês | E4: =SUM(F4:I4) -> 1 | F4: 1
A5: 2 | B5: 2 | C5: Laudo Técnico de Avaliação Estrutural (LT) | D5: mês | E5: =SUM(F5:I5) -> 1 | G5: 1
A6: 3 | B6: 3 | C6: Projeto Estrutural da Solução Escolhida (PE) | D6: mês | E6: =SUM(F6:I6) -> 2 | H6: 1 | I6: 1
A7: Total | B7: Total | C7: Balanço Temporal | D7: mês | E7: =SUM(F7:I7) -> 4 | F7: =SUBTOTAL(4,F4:F6) -> 1 | G7: =SUBTOTAL(4,G4:G6) -> 1 | H7: =SUBTOTAL(4,H4:H6) -> 1 | I7: =SUBTOTAL(4,I4:I6) -> 1
A8: Cod1 | B8: Cod2 | C8: Insumos | D8: Uni | E8: Qde | F8: 1 | G8: 2 | H8: 3 | I8: 4
A9: 1 | B9: =PFP!C8 -> P0 | C9: =PFP!D8 -> Engenheiro coordenador (P8061) | D9: =PFP!E8 -> mês | E9: =SUM(F9:I9) -> 0.2 | F9: 0.2
A10: 1 | B10: =PFP!C9 -> P1 | C10: =PFP!D9 -> Engenheiro sênior (P8067) | D10: =PFP!E9 -> mês | E10: =SUM(F10:I10) -> 0.5 | F10: 0.5
A11: 1 | B11: =PFP!C10 -> P2 | C11: =PFP!D10 -> Engenheiro pleno (P8066) | D11: =PFP!E10 -> mês | E11: =SUM(F11:I11) -> 0.5 | F11: 0.5
A12: 1 | B12: T1 | C12: Técnico de projetos/obra (P8147) | D12: =PFP!E11 -> mês | E12: =SUM(F12:I12) -> 0.25 | F12: 0.25
A13: 1 | B13: =PFP!C12 -> D | C13: =PFP!D12 -> Desenhista (40807) | D13: =PFP!E12 -> mês | E13: =SUM(F13:I13) -> 0.1 | F13: 0.1
C14: Topógrafo | D14: h | E14: =SUM(F14:I14) -> 30 | F14: 30
C15: Auxiliar de topógrafo | D15: =PFP!E13 -> h | E15: 60 | F15: 60
A16: 1 | B16: =PFP!C16 -> M2 | C16: =PFP!D16 -> Relatório Final | D16: =PFP!E16 -> un | E16: =SUM(F16:I16) -> 1 | F16: 1
C17: =PFP!D18 -> Total Ensaios no Concreto Armado | D17: =PFP!E17 -> un | E17: =SUM(F17:I17) -> 23078.22 | F17: =PFP!H18 -> 23078.22
C18: =PFP!D17 -> Total Serviços Geotécnicos | D18: =PFP!E18 -> un | E18: =SUM(F18:I18) -> 18220.3 | F18: =PFP!H17 -> 18220.3
A19: 1 | C19: Relatório de Apresentação dos Resultados dos Ensaios (RE)
A20: 2 | B20: =PFP!C8 -> P0 | C20: =PFP!D8 -> Engenheiro coordenador (P8061) | D20: =PFP!E8 -> mês | E20: =SUM(F20:I20) -> 0.25 | G20: 0.25
A21: 2 | B21: =PFP!C9 -> P1 | C21: =PFP!D9 -> Engenheiro sênior (P8067) | D21: =PFP!E9 -> mês | E21: =SUM(F21:I21) -> 0.5 | G21: 0.5
A22: 2 | B22: =PFP!C10 -> P2 | C22: =PFP!D10 -> Engenheiro pleno (P8066) | D22: =PFP!E10 -> mês | E22: =SUM(F22:I22) -> 0.75 | G22: 0.75
A23: 2 | B23: =PFP!C12 -> D | C23: =PFP!D12 -> Desenhista (40807) | D23: =PFP!E12 -> mês | E23: =SUM(F23:I23) -> 0.5 | G23: 0.5
A24: 2 | B24: =PFP!C16 -> M2 | C24: =PFP!D16 -> Relatório Final | D24: =PFP!E16 -> un | E24: =SUM(F24:I24) -> 1 | G24: 1
A25: 2 | C25: Laudo Técnico de Avaliação Estrutural (LT)
A26: 3 | B26: =PFP!C8 -> P0 | C26: =PFP!D8 -> Engenheiro coordenador (P8061) | D26: =PFP!E8 -> mês | E26: =SUM(F26:I26) -> 0.5 | H26: 0.25 | I26: 0.25
A27: 3 | B27: =PFP!C9 -> P1 | C27: =PFP!D9 -> Engenheiro sênior (P8067) | D27: =PFP!E9 -> mês | E27: =SUM(F27:I27) -> 2 | H27: 1 | I27: 1
A28: 3 | B28: =PFP!C10 -> P2 | C28: =PFP!D10 -> Engenheiro pleno (P8066) | D28: =PFP!E10 -> mês | E28: =SUM(F28:I28) -> 2 | H28: 1 | I28: 1
A29: 3 | B29: =PFP!C12 -> D | C29: =PFP!D12 -> Desenhista (40807) | D29: =PFP!E12 -> mês | E29: =SUM(F29:I29) -> 1.5 | H29: 1 | I29: 0.5
A30: 3 | B30: =PFP!#REF! ->  | C30: =PFP!D16 -> Relatório Final | D30: un | E30: =SUM(F30:I30) -> 1 | I30: 1
A31: 3 | C31: Projeto Estrutural da Solução Escolhida (PE)
A32: Total | C32: Balanço de Insumos | F32: =SUBTOTAL(2,F9:F31) -> 10 | G32: =SUBTOTAL(2,G9:G31) -> 5 | H32: =SUBTOTAL(2,H9:H31) -> 4 | I32: =SUBTOTAL(2,I9:I31) -> 5

Sheet CPU VEICULO_PickUp
A2: Composição de Preços de Locação de Veículos
C3: Data de atualização: | D3: =[41]RESUMO!G4 -> 2023-10-01 | F3: CV | G3: Média | H3: Mediana | L3: CV | M3: Média | N3: Mediana | W3: CV | X3: Média | Y3: Mediana
A4: CODEVASF | F4: =_xlfn.STDEV.S(F7:I7)/AVERAGE(F7:I7) -> 0.09692853429 | G4: =AVERAGE(F7:I7) -> 103847.75 | H4: =MEDIAN(F7:I7) -> 104391 | L4: =_xlfn.STDEV.S(M6:T6)/AVERAGE(M6:T6) -> 0.1487498525 | M4: =AVERAGE(M6:T6) -> 35.1725 | N4: =MEDIAN(M6:T6) -> 35.69 | W4: =_xlfn.STDEV.S(X6:AD6)/AVERAGE(X6:AD6) -> 0.1152686792 | X4: =AVERAGE(X6:AE6) -> 327.81375 | Y4: =MEDIAN(X6:AE6) -> 316.95
A5: OBS: Preço sem BDI e sem motorista BDI= | F5: Preço FIPE - maio/2023 | K5: PRODUTO | L5: MENOR | M5: COT. 1 | N5: COT. 2 | O5: COT. 3 | P5: COT. 4 | Q5: COT. 5 | R5: COT. 6 | S5: COT. 7 | T5: COT. 8 | V5: PRODUTO | W5: MENOR | X5: COT. 1 | Y5: COT. 2 | Z5: COT. 3 | AA5: COT. 4 | AB5: COT. 5 | AC5: COT. 6 | AD5: COT. 7 | AE5: COT. 8
A6: Veículo tipo pick-up, 1.6 T.Flex 16V CD | F6: Saveiro Cross 1.6 T.Flex 16V CD. | G6: Saveiro Robust 1.6 Total Flex 16V. | H6: Saveiro trendline 1.6 Total Flex 16 V. | I6: Saveiro Robust T. Flex 16V CD. | K6: LUBRIFICANTE 5W30 | L6: =SMALL(M4:N4,1) -> 35.1725 | M6: 29.64 | N6: 27.9 | O6: 38 | P6: 39.98 | Q6: 39.85 | R6: 33.38 | S6: 31.35 | T6: 41.28 | V6: Pneu 175/70 R14 | W6: =SMALL(X4:Y4,1) -> 316.95 | X6: 314.9 | Y6: 279.9 | Z6: 394.32 | AA6: 329.9 | AB6: 369.69 | AC6: 314.9 | AD6: 319 | AE6: 299.9
C7: Custo Mensal (R$): | D7: =D49 -> 4852.462389 | F7: 114656 | G7: 109138 | H7: 91953 | I7: 99644
C8: Custo Diária (R$): | D8: =D7/22 -> 220.5664722
C9: Custo Horário (R$): | D9: =D7/176 -> 27.57080903
C10: Custo por Km (R$): | D10: =D7/D23 -> 1.696665171
A11: A | C11: Depreciação mensal do equipamento
A12: A1 | C12: Preço de Aquisição | D12: =SMALL(G4:H4,1) -> 103847.75
A13: A2 | C13: Tempo previsto de vida útil (meses) | D13: 36
A14: A3 | C14: Previsão de recup. Na venda do bem usado | D14: 0.4
A15: A4 | C15: Custo mensal [A1-(A3xA1)]/A2 | D15: =(D12-(D14*D12))/D13 -> 1730.795833
A16: B | C16: Juros pelo Capital empregado
A17: B1 | C17: Taxa mensal de Juros * | D17: =POWER(1+D55,1/12)-1 -> 0.01079391108
A18: B2 | C18: Juros s/depreciação/aluguel (B1xA4) | D18: =D17*D15 -> 18.68205633
A19: C | C19: Conservação e manutenção ** | D19: 0.75
A20: C1 | C20: Taxa de gastos s/a deprec. Inc. seguros (%) | D20: =D19 -> 0.75
A21: C2 | C21: Incidência mensal (C1xA4) | D21: =D20*D15 -> 1298.096875
A22: D | C22: Combustível
A23: D1 | C23: Média mensal de quilômetro por veículo | D23: =130*22 -> 2860
A24: D2 | C24: Preço do litro de combustível | D24: =G61 -> 5.79
A25: D3 | C25: Quilômetros rodados com um litro combustivel | D25: 10
A26: D4 | C26: Combustivel (D1/D3)*D2 | D26: =(D23/D25)*D24 -> 1655.94
A27: E | C27: Lubrificantes
A28: E1 | C28: Quilometragem do Contrato (D1*12) | D28: =D23*12 -> 34320
A29: E2 | C29: Franquia por troca de óleo (km) | D29: 10000
A30: E3 | C30: Preço do litro de óleo | D30: =L6 -> 35.1725
A31: E4 | C31: Quantidade de litros de óleo por troca | D31: 5
A32: E5 | C32: Quantidade de dias do Contrato | D32: =365*1 -> 365
A33: E6 | C33: Lubrificantes E = (E1*E3*E4*30)/E2*E5 | D33: =(D28*D30*D31*30)/(D29*D32) -> 49.60767945
A34: F | C34: Pneus
A35: F1 | C35: Quilometragem do Contrato | D35: =D28 -> 34320
A36: F2 | C36: Vida do Pneu em quilômetros | D36: 45000
A37: F3 | C37: Quantidade de pneus | D37: 5
A38: F4 | C38: Preço do Pneu | D38: =W6 -> 316.95
A39: F5 | C39: Quantidade de dias do contrato | D39: =D32 -> 365
A40: F6 | C40: Pneus = (F1*F3*F4*30)/(F2*F5) | D40: =(D35*D37*D38*30)/(D36*D39) -> 99.33994521
A41: G | C41: Motorista
A42: G1 | C42: Salário com encargos sociais | D42: 4185.11
A43: H | C43: Custo Mensal
C44: Sem Motorista (A4+B2+C2+D4+E6+F6) | D44: =D15+D18+D21+D26+D33+D40 -> 4852.462389
C45: Com Motorista (A4+B2+C2+D4+E6+F6+G1) | D45: =D15+D18+D21+D26+D33+D40+D42 -> 9037.572389
A46: I | C46: Custo Direto p/ km Rodado
C47: Sem Motorista | D47: =D44/D23 -> 1.696665171
C48: Com Motorista | D48: =D45/D23 -> 3.159990346
A49: J | C49: Preço cobrado sem BDI | D49: =D44*(1+D5) -> 4852.462389
A50: J1 | C50: Sem Motorista | D50: =D49 -> 4852.462389
A51: J2 | C51: Com Motorista | D51: =D45 -> 9037.572389 | J51: https://www.google.com/search?q=lubrificante+5w30&sxsrf=AJOqlzUM514L6uswJHb1jIGpGgXchTtV5A:1677092590843&source=lnms&tbm=shop&sa=X&sqi=2&ved=2ahUKEwj_vYfh6Kn9AhVMBrkGHRT6Bv4Q_AUoAXoECAEQAw&biw=1600&bih=757&dpr=1 | U51: https://www.google.com/search?q=pneu+225%2F65+R17&sa=X&biw=1600&bih=757&tbm=shop&sxsrf=AJOqlzWsb-d4PS1_OUOEhKmRc2RbtSg3RQ%3A1677092596279&ei=9Gb2Y9K5ENTa5OUPvLykGA&ved=0ahUKEwjSg9Pj6Kn9AhVULbkGHTweCQMQ4dUDCAg&uact=5&oq=pneu+225%2F65+R17&gs_lcp=Cgtwcm9kdWN0cy1jYxADMgsIABCABBCxAxCDATIFCAAQgAQyBwgAEIAEEAoyBwgAEIAEEAoyBwgAEIAEEAoyBwgAEIAEEAoyBwgAEIAEEAoyBQgAEIAEMgcIABCABBAKMgcIABCABBAKOgQIIxAnOgQIABBDSgQIQRgAUABYoTJgqUBoAHAAeACAAdIFiAGUKZIBDTAuMi42LjIuMi4yLjGYAQCgAQHAAQE&sclient=products-cc
C53: OBSERVAÇÕES:
A54: * | C54: Calculado com base na taxa SELIC ABRIL/2023 - 13,75 % a.a
C55: Taxa de Juros Selic — Português (Brasil) (www.gov.br) | D55: 0.1375
A56: ** | C56: Conservação e manutenção - é calculado com o uso de um coeficiente multiplicador "k", conforme tabela abaixo, sobre a
C57: depreciação mensal do equipamento (Item A da planilha de composição de preços). Os valores de K são fornecidos por
C58: fabricantes.
C59: Metodologia conforme a bibliografia "Como Preparar Orçamentos de Obras", 3 edição, Aldo Dórea Mattos, 2019.
C60: Preço calculado sem BDI
F61: PREÇO DO DIESEL | G61: 5.79
F85: https://precos.petrobras.com.br/sele%C3%A7%C3%A3o-de-estados-diesel

Sheet CPU VEICULO_Leve
A2: Composição de Preços de Locação de Veículos
B3: 2023-08-23 | C3: Data de atualização: | D3: 2023-08-28 | F3: CV | G3: Média | H3: Mediana | L3: CV | M3: Média | N3: Mediana | X3: CV | Y3: Média | Z3: Mediana
A4: CODEVASF | F4: =_xlfn.STDEV.S(F7:I7)/AVERAGE(F7:I7) -> 0.21445381 | G4: =AVERAGE(F7:I7) -> 78326.25 | H4: =MEDIAN(F7:I7) -> 75309.5 | L4: =_xlfn.STDEV.S(M6:U6)/AVERAGE(M6:U6) -> 0.1845149549 | M4: =AVERAGE(M6:U6) -> 26.49888889 | N4: =MEDIAN(M6:U6) -> 24.21 | X4: =_xlfn.STDEV.S(Y6:AG6)/AVERAGE(Y6:AG6) -> 0.1816307473 | Y4: =AVERAGE(Y6:AG6) -> 303.4316667 | Z4: =MEDIAN(Y6:AG6) -> 289.75
A5: OBS: Preço sem BDI e sem motorista BDI= | F5: Preço FIPE - Agosto/2023 | K5: PRODUTO | L5: MENOR | M5: COT. 1 | N5: COT. 2 | O5: COT. 3 | P5: COT. 4 | Q5: COT. 5 | R5: COT. 6 | S5: COT. 7 | T5: COT. 8 | U5: COT. 9 | W5: PRODUTO | X5: MENOR | Y5: COT. 1 | Z5: COT. 2 | AA5: COT. 3 | AB5: COT. 4 | AC5: COT. 5 | AD5: COT. 6 | AE5: COT. 7 | AF5: COT. 8 | AG5: COT. 9
A6: Veículo Leve 1.0 T. Flex 12V 5p | F6: Volksvagen Gol 1.0 | G6: HB20 Platinum 1.0 TB Flex 12V Aut. | H6: ONIX HATCH LT 1.0 12V Flex 5p Mec. | I6: MOBI TREKKING 1.0 Flex 5p. | K6: LUBRIFICANTE 15W40 | L6: =SMALL(M4:N4,1) -> 24.21 | M6: 30.01 | N6: 24.21 | O6: 35.56 | P6: 23.28 | Q6: 30 | R6: 24.15 | S6: 20.38 | T6: 28.9 | U6: 22 | W6: Pneu 185/65 R14 | X6: =SMALL(Y4:Z4,1) -> 289.75 | Y6: 237.41 | Z6: 351.95 | AA6: =912.9/4 -> 228.225 | AB6: 289.75 | AC6: 274.9 | AD6: 340 | AE6: 289.75 | AF6: 319.9 | AG6: 399
C7: Custo Mensal (R$): | D7: =D49 -> 3474.235154 | F7: 67612 | G7: 99938 | H7: 83007 | I7: 62748
C8: Custo Diário (R$): | D8: =D7/22 -> 157.9197797
C9: Custo Horário (R$): | D9: =D7/176 -> 19.73997246
C10: Custo por Km (R$): | D10: =D7/D23 -> 1.214767536
A11: A | C11: Depreciação mensal do equipamento
A12: A1 | C12: Preço de Aquisição | D12: =SMALL(G4:H4,1) -> 75309.5
A13: A2 | C13: Tempo previsto de vida útil (meses) | D13: 36
A14: A3 | C14: Previsão de recup. Na venda do bem usado | D14: 0.4
A15: A4 | C15: Custo mensal [A1-(A3xA1)]/A2 | D15: =(D12-(D14*D12))/D13 -> 1255.158333
A16: B | C16: Juros pelo Capital empregado
A17: B1 | C17: Taxa mensal de Juros * | D17: =POWER(1+D56,1/12)-1 -> 0.01079391108
A18: B2 | C18: Juros s/depreciação/aluguel (B1xA4) | D18: =D17*D15 -> 13.54806744
A19: C | C19: Conservação e manutenção ** | D19: 0.75
A20: C1 | C20: Taxa de gastos s/a deprec. Inc. seguros (%) | D20: =D19 -> 0.75
A21: C2 | C21: Incidência mensal (C1xA4) | D21: =D20*D15 -> 941.36875
A22: D | C22: Combustível
A23: D1 | C23: Média mensal de quilômetro por veículo | D23: =D54*22 -> 2860
A24: D2 | C24: Preço do litro de combustível | D24: 5.65
A25: D3 | C25: Quilômetros rodados com um litro combustivel | D25: =(12.8+13.3+15.3+15)/4 -> 14.1
A26: D4 | C26: Combustivel (D1/D3)*D2 | D26: =(D23/D25)*D24 -> 1146.028369
A27: E | C27: Lubrificantes
A28: E1 | C28: Quilometragem do Contrato (D1*12) | D28: =D23*36 -> 102960
A29: E2 | C29: Franquia por troca de óleo (km) | D29: 10000
A30: E3 | C30: Preço do litro de óleo | D30: =L6 -> 24.21
A31: E4 | C31: Quantidade de litros de óleo por troca | D31: 4
A32: E5 | C32: Quantidade de dias do Contrato | D32: =365*3 -> 1095
A33: E6 | C33: Lubrificantes E = (E1*E3*E4*30)/E2*E5 | D33: =(D28*D30*D31*30)/(D29*D32) -> 27.31683945
A34: F | C34: Pneus
A35: F1 | C35: Quilometragem do Contrato | D35: =D28 -> 102960
A36: F2 | C36: Vida do Pneu em quilômetros | D36: 45000
A37: F3 | C37: Quantidade de pneus | D37: 5
A38: F4 | C38: Preço do Pneu | D38: =X6 -> 289.75
A39: F5 | C39: Quantidade de dias do contrato | D39: =D32 -> 1095 | K39: https://www.google.com/search?q=lubrificante+15w40+1l&sa=X&biw=1600&bih=757&tbm=shop&sxsrf=AJOqlzUezMM_9i0M4NKjKqAMycLuOygp_g%3A1677158931166&ei=E2r3Y5e2CcH31sQPsK67CA&ved=0ahUKEwjXi8vy36v9AhXBu5UCHTDXDgEQ4dUDCAg&uact=5&oq=lubrificante+15w40+1l&gs_lcp=Cgtwcm9kdWN0cy1jYxADMgsIABAWEB4Q8QQQGDoICAAQgAQQsAM6CQgAEAcQHhCwAzoJCAAQCBAeELADOgkIABAeELADEBg6DggAEAUQHhDxBBCwAxAYOgUIABCABDoGCAAQFhAeOggIABAWEB4QGEoECEEYAVDeBFi3DWD0D2gBcAB4AIABpQWIAZAIkgEHMy0xLjAuMZgBAKABAcgBCsABAQ&sclient=products-cc
A40: F6 | C40: Pneus = (F1*F3*F4*30)/(F2*F5) | D40: =(D35*D37*D38*30)/(D36*D39) -> 90.81479452
A41: G | C41: Motorista
A42: G1 | C42: Salário com encargos sociais | D42: 0
A43: H | C43: Custo Mensal | V43: https://www.google.com/search?q=Pneu+185%2F65+R14&sa=X&hl=pt-BR&biw=1600&bih=757&tbm=shop&sxsrf=AJOqlzVJW-LYM1ZPHImwhsD-4UwyAvTluQ%3A1677158863331&ei=z2n3Y-uxE-zT1sQP0r-OmAs&ved=0ahUKEwir1Z7S36v9AhXsqZUCHdKfA7MQ4dUDCAg&uact=5&oq=Pneu+185%2F65+R14&gs_lcp=Cgtwcm9kdWN0cy1jYxADMgsIABCABBCxAxCDATIFCAAQgAQyBQgAEIAEMgUIABCABDIFCAAQgAQyBQgAEIAEMgUIABCABDIFCAAQgAQyBQgAEIAEMgUIABCABEoECEEYAFD5A1jGCWC1EGgAcAB4AIABrQmIAdcbkgEHNS0yLjAuMpgBAKABAcABAQ&sclient=products-cc
C44: Sem Motorista (A4+B2+C2+D4+E6+F6) | D44: =D15+D18+D21+D26+D33+D40 -> 3474.235154
C45: Com Motorista (A4+B2+C2+D4+E6+F6+G1) | D45: =D15+D18+D21+D26+D33+D40+D42 -> 3474.235154
A46: I | C46: Custo Direto p/ km Rodado
C47: Sem Motorista | D47: =D44/D23 -> 1.214767536
C48: Com Motorista | D48: =D45/D23 -> 1.214767536
A49: J | C49: Preço cobrado sem BDI | D49: =D44*(1+D5) -> 3474.235154
A50: J1 | C50: Sem Motorista | D50: =D49 -> 3474.235154
A51: J2 | C51: Com Motorista | D51: =D45 -> 3474.235154
C53: OBSERVAÇÕES:
C54: Média estimada de quilometragem rodados por dia: | D54: 130
A55: * | C55: Calculado com base na taxa SELIC agosto/2022 - 13,75 % a.a
C56: SELIC AGOSTO / 2022 - Taxa de Juros Selic — Português (Brasil) (www.gov.br) | D56: 0.1375
A58: ** | C58: Conservação e manutenção - é calculado com o uso de um coeficiente multiplicador "k", conforme tabela abaixo, sobre a
C59: depreciação mensal do equipamento (Item A da planilha de composição de preços). Os valores de K são fornecidos por
C60: fabricantes.
C61: Metodologia conforme a bibliografia "Como Preparar Orçamentos de Obras", 3 edição, Aldo Dórea Mattos, 2019.
F87: https://precos.petrobras.com.br/sele%C3%A7%C3%A3o-de-estados-gasolina

Sheet Drone
A3: COTAÇÃO Software p/ o drone - Agisoft Metashape - 28/07/2023
A4: Fonte: Google shopping
M5: Cotação 1 | N5: Cotação 2 | O5: Cotação 3 | P5: Cotação 4 | Q5: Cotação 5
M6: 99.9 | N6: 49.9 | O6: 49.9
K7: CV= | L7: =STDEVA(M6:Q6)/AVERAGE(M6:Q6) -> 0.4336631967
K8: Média: | L8: =AVERAGE(M6:Q6) -> 66.56666667
K9: Mediana: | L9: =MEDIAN(M6:Q6) -> 49.9
K10: Menor: | L10: =SMALL(L8:L9,1) -> 49.9
A21: COTAÇÃO Software p/ o drone - Agisoft Metashape - 28/07/2023
A22: Fonte: Google shopping
M24: Cotação 1 | N24: Cotação 2 | O24: Cotação 3 | P24: Cotação 4 | Q24: Cotação 5 | R24: Cotação 6
M25: 31199 | N25: 49990 | O25: 31500 | P25: 29580 | Q25: 25483.17 | R25: 39990.9
K26: CV= | L26: =STDEVA(M25:R25)/AVERAGE(M25:R25) -> 0.2568386549
K27: Média: | L27: =AVERAGE(M25:R25) -> 34623.845
K28: Mediana: | L28: =MEDIAN(M25:R25) -> 31349.5
K29: Menor: | L29: =SMALL(L27:L28,1) -> 31349.5

Sheet COT. VANT
A2: COTAÇÃO ORÇAMENTÁRIA DE LEVANTAMENTO PLANIALTIMÉTRICO POR MEIO DE VANT PARA ÁREA NA CIDADE DE PINDARÉ-MIRIM-MA
A3: MÊS/ANO DE REFERÊNCIA | B3: ÁREA DO PROJETO [ha] | C3: EMPRESA | D3: LOCALIDADE | E3: WEBSITE | F3: CONTATO | G3: AVALIAÇÃO TÉCNICA DA PROPOSTA | H3: PREÇO | I3: PREÇO UNITÁRIO | J3: RELAÇÃO CUSTO-BENEFÍCIO
A4: 2022-09-01 | B4: 50 | C4: 1 | G4: SATISFATÓRIA | H4: 9800 | I4: =(H4/B4) -> 196 | J4: A
A5: 2022-09-01 | B5: 50 | C5: 2 | G5: SATISFATÓRIA | H5: 13240.5 | I5: =(H5/B5) -> 264.81 | J5: B
A6: 2022-09-01 | B6: 50 | C6: 3 | G6: SATISFATÓRIA | H6: 63000 | I6: 1260 | J6: C
A8: Observações | B8: 1. Na cotação acima já estão iclusos: Planejamento Aerotogramétrico, Voo Aerotoforamétrico, Apoio de Campo, Aerotriangulação, Restituição, MDT, MDS, Ortofotos, Edição/Revisão e Entrega Final. | G8: CV com todos valores: | H8: =STDEVA(H4:H6)/AVERAGE(H4:H6) -> 1.038054932
B9: 2. INCONCLUSIVA: não apresentou o orçamento de forma detalhada. | G9: CV tirando o maior valor: | H9: =STDEVA(H4:H5)/AVERAGE(H4:H5) -> 0.2111760492
B10: 3. SATISFATÓRIA: apresentou, no mínimo, os requisitos básicos de um orçamento. | G10: Média tirando o maior valor: | H10: =AVERAGE(H4:H5) -> 11520.25 | I10: Valor para a área de 65ha
B11: 4-Para o valor do serviço de Vant, considerou-se a média tirando o maior valor das cotações recebidas, pois o CV (coeficiente de variação) está muito elevado com as 3 cotaçoes.
B12: 5-As cotações recebidas foram utilizadas para o serviço de levantamento do Ramal do Manga no Amapá, referente a um trecho de 6,5km de rodovia, com área total estimadade de 65ha.
B13: Dessa forma, para a cotação representativa deste serviço, realizou-se a parametrização proporcional a área de estudo do serviço a ser realizado.
B15: Portanto:
C16: =I10 -> Valor para a área de 65ha | D16: =H10 -> 11520.25
C17: Valor unitário para a área de 1ha | D17: =D16/65 -> 177.2346154
